bitfinex/quotes_SOLUSD_20240624
["timestamp","ask_amount","ask_price","bid_price","bid_amount"]
[1719231777605,8.54273871,128.77,128.73,7.7681]
[1719231778022,8.54283871,128.77,128.72,19.4206]
[1719231778227,8.54283871,128.77,128.73,7.7681]
[1719231778935,7.7664,128.76,128.73,7.7681]
[1719231779313,8.54263871,128.77,128.73,7.7681]
[1719231779719,0.77663871,128.74,128.73,7.7681]
[1719231780413,0.77663871,128.74,128.73,168.3546]
[1719231780721,0.77663871,128.74,128.73,68.3546]
[1719231780928,0.77663871,128.74,128.73,23.3546]
[1719231781230,0.77663871,128.74,128.73,7.7681]
[1719231783329,8.54443871,128.74,128.7,7.7696]
[1719231783636,8.54443871,128.74,128.69,19.425]
[1719231783935,8.54443871,128.74,128.68,38.8543]
[1719231783936,0.77663871,128.74,128.68,38.8543]
[1719231784318,0.77663871,128.74,128.72,27.1899]
[1719231784519,7.7691,128.72,128.68,27.1987]
[1719231784721,7.7694,128.71,128.68,19.4279]
[1719231784932,7.7687,128.73,128.68,19.4279]
[1719231785236,7.7687,128.73,128.69,7.7701]
[1719231785841,8.54463871,128.74,128.7,7.7698]
[1719231786020,7.7685,128.73,128.69,7.7704]
[1719231786228,7.7682,128.73,128.69,7.7703]
[1719231786524,7.7682,128.73,128.7,7.7698]
[1719231786730,0.77663871,128.74,128.72,7.7685]
[1719231787116,0.77663871,128.74,128.73,7.7681]
[1719231788041,0.77663871,128.74,128.73,52.7681]
[1719231788640,0.77663871,128.74,128.69,19.4252]
[1719231788942,0.77663871,128.74,128.71,7.7693]
[1719231789523,8.54423871,128.74,128.71,7.7693]
[1719231789723,8.54423871,128.74,128.69,19.4252]
[1719231789724,0.77663871,128.74,128.69,19.4252]
[1719231789931,7.7686,128.73,128.69,19.4252]
[1719231790235,0.77663871,128.74,128.71,27.192]
[1719231790436,0.77663871,128.74,128.72,7.7687]
[1719231790830,0.77663871,128.74,128.71,27.1923]
[1719231791823,0.77663871,128.74,128.72,19.4205]
[1719231792038,0.77663871,128.74,128.73,7.7681]
[1719231792343,0.77663871,128.74,128.73,52.7681]
[1719231792646,7.7617,128.84,128.8,7.7634]
[1719231792819,25.8375,128.84,128.79,19.4104]
[1719231793023,33.5992,128.84,128.8,7.7635]
[1719231793223,16.5843,128.87,128.81,19.4081]
[1719231793921,0.2036048,128.88,128.81,19.4081]
[1719231794118,0.2036048,128.88,128.79,38.8207]
[1719231794119,0.2036048,128.88,128.86,7.7603]
[1719231794333,0.2036048,128.88,128.87,7.7597]
[1719231794518,0.2036048,128.88,128.87,9.30661939]
[1719231794719,0.2036048,128.88,128.86,7.7601]
[1719231795322,0.2036048,128.88,128.87,7.7597]
[1719231796044,0.2036048,128.88,128.87,52.7597]
[1719231796349,15.5081,128.99,128.88,106.0799]
[1719231796536,7.7556,128.99,128.93,27.1448]
[1719231796745,7.7532,128.98,128.93,27.1448]
[1719231797049,7.7543,128.96,128.93,19.3893]
[1719231797252,7.7539,128.97,128.92,7.7565]
[1719231797625,20.2546269,129.0,128.9,19.3939]
[1719231797862,1.365406,128.99,128.87,19.3993]
[1719231798152,25.8113,128.97,128.87,19.3993]
[1719231798453,7.7568,128.92,128.87,27.1589]
[1719231798752,7.7568,128.92,128.88,7.759]
[1719231798937,7.7568,128.92,128.87,27.1589]
[1719231799131,7.7563,128.93,128.88,7.7588]
[1719231799333,19.3883,128.95,128.84,19.4028]
[1719231799528,19.3883,128.95,128.83,38.8098]
[1719231799739,7.7572,128.92,128.87,7.7596]
[1719231799950,20.82131435,128.95,128.86,27.1601]
[1719231799951,7.7577,128.91,128.86,27.1601]
[1719231800151,7.7569,128.92,128.87,7.7595]
[1719231800545,1.43301435,128.95,128.81,256.2]
[1719231800742,19.3907,128.93,128.86,7.7603]
[1719231800942,1.43301435,128.95,128.85,19.4016]
[1719231801138,1.43301435,128.95,128.89,19.396]
[1719231801348,7.7562,128.93,128.89,27.1544]
[1719231801542,7.7568,128.92,128.87,7.7595]
[1719231801855,7.7568,128.92,128.88,7.759]
[1719231802163,7.7568,128.92,128.86,19.3998]
[1719231802164,1.43301435,128.95,128.83,19.4044]
[1719231802453,7.7583,128.9,128.85,19.4018]
[1719231802639,7.7592,128.88,128.84,7.7615]
[1719231802839,7.7587,128.89,128.85,7.7608]
[1719231803053,7.7586,128.89,128.84,19.4034]
[1719231803358,19.3896,128.94,128.85,7.7607]
[1719231803650,46.43489962,128.93,128.85,7.7608]
[1719231803856,7.7581,128.9,128.86,7.7603]
[1719231804031,7.7587,128.89,128.85,7.7604]
[1719231804232,7.7596,128.88,128.84,27.1646]
[1719231804663,7.7596,128.88,128.84,19.4034]
[1719231805049,7.7596,128.88,128.84,27.1649]
[1719231805529,46.43489962,128.93,128.84,19.4034]
[1719231805734,7.7585,128.9,128.86,7.7602]
[1719231805933,19.392,128.92,128.84,19.4034]
[1719231806151,7.7581,128.9,128.86,27.1605]
[1719231806354,7.7579,128.9,128.86,27.1608]
[1719231806750,1.43489962,128.93,128.83,19.4041]
[1719231806751,20.82539962,128.93,128.83,19.4041]
[1719231807056,7.7585,128.9,128.86,7.7603]
[1719231807467,19.3938,128.91,128.82,19.4058]
[1719231807757,7.7584,128.9,128.86,7.7599]
[1719231807935,7.7597,128.87,128.84,19.4039]
[1719231808342,7.7592,128.88,128.84,27.1652]
[1719231808545,7.7587,128.89,128.85,7.7606]
[1719231809268,7.7591,128.88,128.85,7.7606]
[1719231809451,7.7588,128.89,128.85,7.7606]
[1719231809958,85.95633314,128.96,128.91,7.7571]
[1719231809959,7.7551,128.95,128.91,7.7571]
[1719231810135,7.756,128.94,128.9,7.7575]
[1719231810645,7.756,128.94,128.91,7.7572]
[1719231811058,7.756,128.94,128.9,7.7577]
[1719231811461,7.7561,128.93,128.89,27.1543]
[1719231811660,25.8107,128.97,128.91,27.1501]
[1719231811864,7.7551,128.95,128.92,7.7567]
[1719231812048,7.7551,128.95,128.91,27.1502]
[1719231812252,7.7557,128.94,128.9,7.7577]
[1719231812560,7.7557,128.94,128.9,27.1522]
[1719231812960,25.8108,128.97,128.93,7.7558]
[1719231812961,14.1803,128.97,128.93,7.7558]
[1719231813268,22.54363423,128.98,128.94,19.3888]
[1719231813269,7.7533,128.98,128.94,19.3888]
[1719231813560,7.7549,128.95,128.91,19.392]
[1719231813942,7.7545,128.96,128.92,7.7567]
[1719231814264,7.7539,128.97,128.93,7.7559]
[1719231814461,0.8741269,129.0,128.92,100.0]
[1719231814662,0.8741269,129.0,128.91,138.7845]
[1719231814663,0.8741269,129.0,128.94,100.0]
[1719231814965,0.8741269,129.0,128.98,19.382]
[1719231815145,0.8741269,129.0,128.99,7.7525]
[1719231816265,0.8741269,129.0,128.99,52.7525]
[1719231816758,0.8741269,129.0,128.99,7.7525]
[1719231817563,0.8741269,129.0,128.98,19.382]
[1719231817766,0.8741269,129.0,128.98,27.1349]
[1719231817949,0.8741269,129.0,128.95,19.3864]
[1719231818264,0.8741269,129.0,128.96,7.7538]
[1719231818565,0.8741269,129.0,128.96,19.3853]
[1719231818769,0.8741269,129.0,128.97,7.7535]
[1719231819071,0.8741269,129.0,128.98,27.1357]
[1719231819853,0.77531401,128.99,128.98,27.1357]
[1719231820646,0.77531401,128.99,128.97,7.7535]
[1719231821263,0.77531401,128.99,128.98,7.7531]
[1719231821774,0.77531401,128.99,128.98,52.7531]
[1719231822458,0.77531401,128.99,128.97,27.1365]
[1719231822661,0.77531401,128.99,128.98,7.7531]
[1719231824570,0.77531401,128.99,128.94,27.1426]
[1719231824571,7.7535,128.98,128.94,27.1426]
[1719231824770,0.77531401,128.99,128.91,38.7853]
[1719231824771,20.15671401,128.99,128.91,19.3926]
[1719231825158,19.3847,128.97,128.88,15.5772]
[1719231825476,7.7549,128.95,128.91,7.7569]
[1719231826069,19.3875,128.95,128.85,7.7604]
[1719231826269,7.7575,128.91,128.86,7.7599]
[1719231826576,7.7575,128.91,128.87,7.7594]
[1719231826963,7.7551,128.95,128.9,7.7575]
[1719231827160,7.7559,128.94,128.9,27.1522]
[1719231827477,7.7569,128.92,128.88,7.7589]
[1719231827682,7.7573,128.92,128.87,27.1575]
[1719231827970,7.7573,128.92,128.88,7.7591]
[1719231828370,7.7573,128.92,128.84,19.4033]
[1719231828371,6.326,128.9,128.84,19.4033]
[1719231828578,6.326,128.9,128.81,7.7632]
[1719231828579,7.7609,128.86,128.81,7.7632]
[1719231828760,7.7609,128.86,128.78,38.8257]
[1719231828761,7.7595,128.88,128.78,138.8257]
[1719231828958,7.7587,128.89,128.84,7.761]
[1719231829163,7.7592,128.88,128.84,7.761]
[1719231829362,14.0844,128.9,128.86,7.7603]
[1719231829557,7.759,128.89,128.85,27.1629]
[1719231829759,7.7577,128.91,128.85,19.4021]
[1719231830065,7.7577,128.91,128.78,48.8257]
[1719231830066,7.76,128.87,128.83,7.7617]
[1719231830385,7.7593,128.88,128.84,7.7615]
[1719231830575,7.7593,128.88,128.83,19.4052]
[1719231830879,7.7587,128.89,128.83,19.4052]
[1719231831267,7.7587,128.89,128.85,7.7607]
[1719231831662,7.7591,128.88,128.84,7.7613]
[1719231832072,7.7598,128.87,128.83,27.1671]
[1719231832465,7.7598,128.87,128.78,38.8257]
[1719231832466,19.3952,128.9,128.8,19.4086]
[1719231832774,7.7608,128.86,128.82,27.1688]
[1719231832980,19.3952,128.9,128.82,27.1688]
[1719231833161,19.3952,128.9,128.82,19.4062]
[1719231833358,38.66918955,128.94,128.78,138.8257]
[1719231833359,8.10918955,128.94,128.78,138.8257]
[1719231833682,7.7587,128.89,128.85,7.7608]
[1719231834383,7.7585,128.89,128.86,19.4006]
[1719231835059,1.365406,128.93,128.86,19.4006]
[1719231835261,7.7573,128.91,128.87,7.7594]
[1719231835880,7.7569,128.92,128.88,7.7591]
[1719231836997,7.7574,128.91,128.87,27.1574]
[1719231837169,7.7574,128.91,128.88,7.7591]
[1719231837669,12.45268195,128.95,128.89,7.7583]
[1719231837670,7.7563,128.93,128.89,7.7583]
[1719231837870,7.7571,128.92,128.88,7.7589]
[1719231838067,31.84148195,128.95,128.88,7.759]
[1719231838272,7.7568,128.92,128.88,7.759]
[1719231838489,15.5325,128.96,128.89,19.3957]
[1719231838490,21.54899761,128.96,128.89,19.3957]
[1719231838696,15.5325,128.96,128.91,7.7573]
[1719231838994,25.5999,128.98,128.87,38.7968]
[1719231838995,6.2158,128.98,128.92,19.3904]
[1719231839192,0.77531401,128.99,128.88,200.0]
[1719231839491,0.77531401,128.99,128.94,19.3879]
[1719231839691,8.52821401,128.99,128.95,7.7547]
[1719231839997,7.7529,128.99,128.95,7.7547]
[1719231840169,0.8741269,129.0,128.9,58.1824]
[1719231840379,7.7548,128.96,128.92,7.7566]
[1719231840586,7.7549,128.95,128.91,7.7571]
[1719231840786,7.7545,128.96,128.92,7.7566]
[1719231840969,7.7551,128.95,128.91,7.7571]
[1719231841170,7.7545,128.96,128.92,7.7564]
[1719231841775,7.7539,128.97,128.93,7.7561]
[1719231843488,7.7555,128.94,128.9,7.7577]
[1719231843669,0.8741269,129.0,128.84,154.1313]
[1719231843869,45.8741269,129.0,128.84,54.1313]
[1719231844175,7.7565,128.93,128.89,7.7583]
[1719231844373,7.7567,128.92,128.88,7.7589]
[1719231844573,7.7573,128.91,128.87,7.7595]
[1719231844763,7.7583,128.9,128.86,27.1596]
[1719231845167,7.7598,128.87,128.83,27.167]
[1719231845369,25.9869,128.94,128.81,38.8149]
[1719231845568,25.9869,128.94,128.85,19.4019]
[1719231845803,7.7583,128.9,128.85,19.4019]
[1719231845973,7.7586,128.89,128.85,27.1624]
[1719231846168,7.7581,128.9,128.86,7.7603]
[1719231846372,7.7585,128.89,128.85,27.1626]
[1719231847065,16.5205,128.93,128.85,19.4019]
[1719231847066,19.3919,128.92,128.85,19.4019]
[1719231847283,16.5205,128.93,128.82,19.4056]
[1719231847477,7.7599,128.87,128.83,7.7621]
[1719231848096,7.7603,128.86,128.82,27.1681]
[1719231848397,7.7599,128.87,128.83,7.762]
[1719231849997,19.3991,128.88,128.79,19.4101]
[1719231850297,25.9111,128.86,128.75,21.6936]
[1719231850509,25.9111,128.86,128.76,19.4148]
[1719231850510,6.5102,128.86,128.76,19.4148]
[1719231851413,7.7604,128.86,128.81,7.7627]
[1719231851701,7.7605,128.86,128.82,7.7626]
[1719231851880,6.5102,128.9,128.83,19.405]
[1719231852085,7.7596,128.88,128.84,7.7612]
[1719231852282,6.5102,128.9,128.83,19.405]
[1719231852283,7.7598,128.87,128.83,27.167]
[1719231852699,6.5102,128.9,128.85,19.4017]
[1719231853081,6.5102,128.9,128.86,7.7598]
[1719231853404,6.5102,128.9,128.87,7.7596]
[1719231853877,6.5102,128.9,128.85,19.4017]
[1719231854081,7.7585,128.89,128.85,27.1625]
[1719231854287,6.5102,128.9,128.86,7.7603]
[1719231854288,14.2683,128.9,128.86,7.7603]
[1719231854599,22.68988182,128.93,128.87,19.3991]
[1719231854895,7.7568,128.92,128.88,7.759]
[1719231855076,7.7567,128.93,128.87,19.3991]
[1719231855275,7.7567,128.93,128.89,7.758]
[1719231855682,14.2552,128.94,128.9,7.7578]
[1719231855887,7.7562,128.93,128.89,27.1543]
[1719231856295,6.4996,128.94,128.86,19.4006]
[1719231856483,6.4996,128.94,128.87,7.7597]
[1719231856484,7.7577,128.91,128.87,7.7597]
[1719231857005,7.7579,128.9,128.86,27.1607]
[1719231857689,7.7593,128.88,128.84,7.7611]
[1719231857888,7.7585,128.89,128.85,7.7607]
[1719231858197,7.7586,128.89,128.85,7.7605]
[1719231858395,7.7581,128.9,128.86,7.7602]
[1719231858593,19.3908,128.93,128.85,19.402]
[1719231858791,7.758,128.9,128.86,7.7599]
[1719231859904,0.77603601,128.87,128.86,7.7599]
[1719231860107,0.77603601,128.87,128.82,19.406]
[1719231860293,0.77603601,128.87,128.84,7.7614]
[1719231860488,0.77603601,128.87,128.82,19.406]
[1719231860693,0.77603601,128.87,128.85,7.7609]
[1719231861209,0.77603601,128.87,128.84,27.165]
[1719231861796,0.77603601,128.87,128.81,19.4074]
[1719231862105,7.7604,128.86,128.81,19.4074]
[1719231862281,8.53623601,128.87,128.83,7.7621]
[1719231862604,8.53623601,128.87,128.81,19.4074]
[1719231862605,8.53623601,128.87,128.82,7.7622]
[1719231862904,7.7604,128.86,128.82,7.7625]
[1719231863494,8.53583601,128.87,128.83,7.7621]
[1719231863694,8.53583601,128.87,128.81,19.4074]
[1719231863695,7.7603,128.86,128.82,7.7625]
[1719231863903,7.7603,128.86,128.83,7.7621]
[1719231864488,7.7609,128.85,128.81,27.1705]
[1719231864690,7.7615,128.84,128.81,19.4074]
[1719231865289,7.7611,128.85,128.81,27.1706]
[1719231867200,7.7616,128.84,128.81,27.1706]
[1719231867693,7.7611,128.85,128.81,27.1706]
[1719231868094,7.7612,128.85,128.81,7.7632]
[1719231868814,7.7616,128.84,128.81,7.7632]
[1719231868990,7.7613,128.85,128.81,7.7632]
[1719231869186,7.05883601,128.87,128.81,7.7632]
[1719231869424,7.7617,128.84,128.8,7.7637]
[1719231869912,7.05883601,128.87,128.83,7.7621]
[1719231870106,7.05883601,128.87,128.77,45.1027]
[1719231870298,7.7604,128.86,128.83,19.4054]
[1719231870804,7.05883601,128.87,128.84,7.7615]
[1719231871110,0.77603601,128.87,128.85,7.7608]
[1719231871415,0.77603601,128.87,128.85,19.4018]
[1719231871588,0.77603601,128.87,128.86,7.7603]
[1719231876398,0.77603601,128.87,128.85,27.1626]
[1719231876710,0.77603601,128.87,128.85,7.7605]
[1719231877013,0.77603601,128.87,128.86,7.7603]
[1719231878000,0.77603601,128.87,128.85,19.4009]
[1719231878228,0.77603601,128.87,128.84,7.7613]
[1719231878396,0.77603601,128.87,128.83,58.2152]
[1719231878397,8.53573601,128.87,128.83,27.1672]
[1719231878598,0.77603601,128.87,128.84,7.7614]
[1719231878901,0.77603601,128.87,128.83,19.4053]
[1719231879106,0.77603601,128.87,128.85,7.7607]
[1719231879409,0.77603601,128.87,128.85,7.7603]
[1719231879616,0.77603601,128.87,128.81,22.5455]
[1719231879807,6.1448,128.94,128.89,7.7583]
[1719231879996,7.7563,128.93,128.89,7.7583]
[1719231880198,6.1448,128.94,128.89,7.7583]
[1719231880523,6.1448,128.94,128.83,138.8095]
[1719231880724,7.7562,128.93,128.89,7.7583]
[1719231880902,13.9004,128.94,128.86,38.8]
[1719231881096,6.1448,128.94,128.91,7.7573]
[1719231881314,13.9003,128.94,128.9,7.7577]
[1719231881497,6.1448,128.94,128.89,19.3949]
[1719231881695,6.1448,128.94,128.9,7.7577]
[1719231881897,13.9005,128.94,128.9,7.7577]
[1719231882918,7.7561,128.93,128.9,7.7577]
[1719231883112,6.1448,128.94,128.89,19.3949]
[1719231883303,13.9006,128.94,128.9,7.7576]
[1719231884124,13.9006,128.94,128.91,7.7572]
[1719231884497,7.7558,128.94,128.91,7.7572]
[1719231885120,7.7558,128.94,128.9,7.7576]
[1719231886026,6.01302988,128.95,128.89,19.3949]
[1719231886212,22.482,128.97,128.92,27.1473]
[1719231886213,7.7547,128.96,128.92,27.1473]
[1719231886613,7.7549,128.95,128.92,19.3911]
[1719231887519,7.7546,128.96,128.92,27.1475]
[1719231887726,7.7549,128.95,128.92,27.1475]
[1719231888107,7.7549,128.95,128.92,19.3911]
[1719231888425,7.7549,128.95,128.92,27.1478]
[1719231888632,7.7549,128.95,128.92,19.3911]
[1719231888930,7.7549,128.95,128.92,27.1478]
[1719231889106,28.43556572,128.97,128.92,19.3911]
[1719231889306,7.7546,128.96,128.92,27.1475]
[1719231889530,28.43556572,128.97,128.86,38.8]
[1719231889733,7.7558,128.94,128.9,7.7579]
[1719231889917,19.3858,128.96,128.88,19.3978]
[1719231890107,7.7563,128.93,128.88,19.3978]
[1719231890725,7.7563,128.93,128.89,7.7583]
[1719231891231,7.7563,128.93,128.9,7.7578]
[1719231891438,7.7563,128.93,128.86,38.8]
[1719231891439,28.43556572,128.97,128.91,19.3933]
[1719231891602,28.43556572,128.97,128.91,27.1503]
[1719231891603,7.7551,128.95,128.91,27.1503]
[1719231892527,7.7557,128.94,128.91,27.1503]
[1719231893229,7.755,128.95,128.91,27.1503]
[1719231894314,19.386,128.96,128.89,19.3962]
[1719231894512,7.7564,128.93,128.89,27.1544]
[1719231894928,7.7558,128.94,128.9,7.7578]
[1719231896524,7.7558,128.94,128.91,7.7572]
[1719231897326,7.7558,128.94,128.9,7.7576]
[1719231897729,20.04976572,128.97,128.93,7.7557]
[1719231898736,7.7563,128.93,128.89,27.1533]
[1719231898934,19.3871,128.96,128.87,19.3991]
[1719231899118,7.7569,128.92,128.88,7.7587]
[1719231899313,7.7575,128.91,128.87,19.3991]
[1719231899533,12.29566572,128.97,128.86,23.1965]
[1719231899734,0.77603601,128.87,128.86,50.3577]
[1719231900517,0.77603601,128.87,128.86,27.1612]
[1719231900733,0.77603601,128.87,128.86,19.4009]
[1719231901114,0.77603601,128.87,128.86,27.1612]
[1719231904331,0.77603601,128.87,128.85,7.7607]
[1719231905224,0.77603601,128.87,128.86,7.7603]
[1719231911649,0.77603601,128.87,128.85,27.1617]
[1719231912560,0.77603601,128.87,128.83,19.4052]
[1719231912857,0.77603601,128.87,128.84,7.7612]
[1719231913371,0.77603601,128.87,128.86,7.7603]
[1719231913652,0.77603601,128.87,128.85,7.7606]
[1719231914424,0.77603601,128.87,128.86,27.1612]
[1719231915083,3.601e-05,128.87,128.86,27.1612]
[1719231915253,3.601e-05,128.87,128.86,72.1612]
[1719231917133,3.601e-05,128.87,128.86,172.1612]
[1719231917333,3.601e-05,128.87,128.86,193.5878]
[1719231917750,3.601e-05,128.87,128.86,93.5878]
[1719231918250,3.601e-05,128.87,128.86,48.5878]
[1719231918650,3.601e-05,128.87,128.86,93.5878]
[1719231918952,3.601e-05,128.87,128.86,48.5878]
[1719231919253,3.601e-05,128.87,128.86,27.1612]
[1719231919734,13.90657845,128.95,128.91,7.7571]
[1719231919942,22.2961,128.97,128.9,19.3947]
[1719231920148,7.7554,128.95,128.92,7.7566]
[1719231920545,7.7556,128.94,128.9,19.3947]
[1719231920747,7.758,128.9,128.87,19.3983]
[1719231920931,7.7584,128.9,128.79,100.0]
[1719231921128,19.3897,128.94,128.81,26.04]
[1719231921349,19.3897,128.94,128.88,7.7588]
[1719231921558,7.7568,128.92,128.88,7.7588]
[1719231921735,7.7564,128.93,128.89,7.7585]
[1719231922653,7.7569,128.92,128.88,27.1565]
[1719231923557,7.7574,128.91,128.88,27.1565]
[1719231923932,45.0,128.95,128.84,7.7612]
[1719231923933,109.816,128.95,128.84,7.7612]
[1719231924135,7.7595,128.88,128.84,7.7612]
[1719231924639,7.7588,128.89,128.85,7.7609]
[1719231924843,7.7592,128.88,128.85,7.7609]
[1719231925055,7.7592,128.88,128.84,7.7612]
[1719231925849,7.7586,128.89,128.85,27.1629]
[1719231927356,21.926,128.91,128.88,7.7589]
[1719231927559,19.3893,128.94,128.86,19.3995]
[1719231927751,7.7574,128.91,128.87,7.7594]
[1719231927939,7.7574,128.91,128.88,7.759]
[1719231928455,7.7569,128.92,128.88,7.759]
[1719231929958,22.4188,128.95,128.89,19.3958]
[1719231930165,22.4188,128.95,128.92,7.7565]
[1719231930366,22.4188,128.95,128.91,19.393]
[1719231930547,6.6132,128.95,128.91,19.393]
[1719231930747,0.8741269,129.0,128.87,15.8156]
[1719231930748,22.7178,128.99,128.89,26.04]
[1719231930960,22.7178,128.99,128.91,19.392]
[1719231931546,19.3829,128.98,128.91,27.1493]
[1719231931748,7.7554,128.95,128.91,27.1493]
[1719231931975,19.3829,128.98,128.89,19.3962]
[1719231932155,28.83502113,128.99,128.88,7.7589]
[1719231932471,28.83502113,128.99,128.88,7.759]
[1719231932472,19.3874,128.95,128.88,7.759]
[1719231932655,19.3906,128.93,128.85,19.4023]
[1719231932841,7.7575,128.91,128.87,7.7591]
[1719231933048,7.7568,128.92,128.88,7.7588]
[1719231933246,19.3873,128.96,128.88,19.3975]
[1719231933474,19.3873,128.96,128.89,7.7584]
[1719231933651,7.7562,128.93,128.89,7.7584]
[1719231934173,7.7567,128.92,128.89,7.7584]
[1719231934679,7.7567,128.92,128.88,27.1564]
[1719231935279,7.7574,128.91,128.88,27.1564]
[1719231935571,7.7574,128.91,128.87,7.7597]
[1719231935746,7.7569,128.92,128.88,7.7591]
[1719231936078,19.3888,128.95,128.86,19.4008]
[1719231936079,7.7574,128.91,128.87,7.7596]
[1719231936253,19.3888,128.95,128.86,19.4008]
[1719231936254,7.7581,128.9,128.86,19.4008]
[1719231937088,7.7587,128.89,128.85,7.7606]
[1719231937589,7.7592,128.88,128.85,27.1628]
[1719231938167,7.7579,128.9,128.85,19.4022]
[1719231938373,7.7586,128.89,128.86,10.85383626]
[1719231938568,7.7581,128.9,128.86,7.7601]
[1719231939683,7.7581,128.9,128.85,19.4022]
[1719231939684,7.7575,128.91,128.87,7.7595]
[1719231940098,30.4302,128.92,128.88,7.7587]
[1719231940272,7.7557,128.94,128.86,38.8003]
[1719231940462,13.76652354,128.95,128.91,7.7572]
[1719231940975,13.76652354,128.95,128.91,27.1504]
[1719231941573,7.7556,128.94,128.91,19.3932]
[1719231941890,13.76652354,128.95,128.91,19.3932]
[1719231942061,13.76652354,128.95,128.91,27.1503]
[1719231942680,7.7551,128.95,128.91,27.1503]
[1719231943192,7.7555,128.94,128.91,27.1503]
[1719231943588,7.7551,128.95,128.92,7.7566]
[1719231943774,7.755,128.95,128.91,27.1504]
[1719231943974,7.7545,128.96,128.92,7.7566]
[1719231944893,6.22047038,128.97,128.91,19.3932]
[1719231945101,7.7546,128.96,128.92,7.7566]
[1719231945794,41.8669,128.99,128.93,7.7559]
[1719231946094,7.7544,128.96,128.92,7.7565]
[1719231947264,19.3849,128.97,128.88,19.3964]
[1719231947483,19.3849,128.97,128.91,7.7572]
[1719231947965,19.3849,128.97,128.9,19.3947]
[1719231947966,28.46920497,128.99,128.92,19.3915]
[1719231948189,28.46920497,128.99,128.9,38.7891]
[1719231948494,28.46920497,128.99,128.87,21.7481]
[1719231948685,19.3831,128.98,128.91,19.3929]
[1719231948861,7.755,128.95,128.91,27.15]
[1719231949269,19.3831,128.98,128.92,7.7567]
[1719231949270,7.7545,128.96,128.92,7.7567]
[1719231949490,7.7552,128.95,128.91,27.1501]
[1719231949669,19.3831,128.98,128.91,27.1501]
[1719231949880,7.7552,128.95,128.91,27.1501]
[1719231950568,7.7552,128.95,128.92,7.7566]
[1719231950766,7.7552,128.95,128.91,27.1499]
[1719231952384,19.3831,128.98,128.88,19.3966]
[1719231952602,7.7549,128.95,128.91,7.7567]
[1719231953198,7.7549,128.95,128.92,7.7566]
[1719231953388,7.7544,128.96,128.92,7.7566]
[1719231954099,7.755,128.95,128.92,7.7566]
[1719231954968,7.755,128.95,128.9,27.1516]
[1719231955199,7.755,128.95,128.91,7.7568]
[1719231955549,7.755,128.95,128.92,7.7567]
[1719231955866,28.46920497,128.99,128.87,21.7481]
[1719231956071,19.3875,128.95,128.87,41.146]
[1719231956372,7.7563,128.93,128.89,7.7582]
[1719231956583,7.7557,128.94,128.9,7.7578]
[1719231957862,7.755,128.95,128.91,7.7572]
[1719231958901,7.7555,128.94,128.91,7.7572]
[1719231959080,7.7567,128.92,128.89,19.3949]
[1719231959290,19.3871,128.96,128.9,7.7579]
[1719231959497,7.7569,128.92,128.89,7.7585]
[1719231959701,19.3871,128.96,128.89,7.7585]
[1719231959882,0.77585539,128.9,128.89,7.7585]
[1719231960677,0.77585539,128.9,128.85,19.4017]
[1719231960891,8.53395539,128.9,128.86,7.7602]
[1719231961218,7.7585,128.89,128.85,27.1625]
[1719231961382,0.77585539,128.9,128.86,7.7603]
[1719231961383,8.53395539,128.9,128.86,7.7603]
[1719231961983,7.759,128.89,128.85,27.1625]
[1719231962899,20.17085539,128.9,128.82,19.4055]
[1719231963208,20.17085539,128.9,128.77,60.9223]
[1719231963209,7.7618,128.84,128.8,7.7638]
[1719231964705,7.7623,128.83,128.79,19.4099]
[1719231964911,7.7616,128.84,128.8,7.7634]